[Event "44th Chess Olympiad Open 2022"]
[Site "Chennai"]
[Date "2022.07.29"]
[Round "1.62"]
[White "Capo Vidal, Uriel"]
[Black "Lwebuga, Ronald"]
[Result "1-0"]
[WhiteElo "2215"]
[BlackElo "1818"]
[Annotator "NA RC"]
[PlyCount "69"]
[EventDate "2022.??.??"]
[TimeControl "60"]

1. d4 {[%emt 0:00:07]} f5 {[%emt 0:00:08]} 2. c4 {[%emt 0:00:27]} Nf6 {[%emt 0:
00:00]} 3. g3 {[%emt 0:00:24]} g6 {[%emt 0:00:20]} 4. Bg2 {[%emt 0:00:45]} c6 {
[%emt 0:00:49]} 5. Nc3 {[%emt 0:01:05]} Bg7 {[%emt 0:00:09]} 6. Nh3 {[%emt 0:
00:00]} d6 {[%emt 0:01:15]} 7. d5 {[%emt 0:00:48]} O-O {[%emt 0:00:41]} 8. O-O
{[%emt 0:00:10]} c5 {[%emt 0:03:56]} 9. Nf4 {[%emt 0:00:45]} Na6 {[%emt 0:00:
00]} 10. h4 {[%emt 0:05:23]} Nc7 {[%emt 0:01:36]} 11. a4 {[%emt 0:00:16]} a6 {
[%emt 0:01:04]} 12. a5 {[%emt 0:02:09]} Rb8 {[%emt 0:00:50]} 13. Na4 {[%emt 0:
00:00]} Bd7 {[%emt 0:04:02]} 14. Nb6 {[%emt 0:00:26]} Kh8 {[%emt 0:00:24]} 15.
Qc2 {[%emt 0:02:51]} Qe8 {[%emt 0:03:38]} 16. Rd1 {[%emt 0:08:04]} h6 {[%emt 0:
00:00]} 17. Ra3 {[%emt 0:05:19]} g5 {[%emt 0:02:20]} 18. hxg5 {[%emt 0:00:31]}
hxg5 {[%emt 0:00:14]} 19. Nxd7 {[%emt 0:00:19]} Nxd7 {[%emt 0:00:40]} 20. Ne6 {
[%emt 0:00:59]} Nxe6 {[%emt 0:01:07]} 21. dxe6 {[%emt 0:00:08]} Ne5 {[%emt 0:
00:00]} 22. Bxg5 {[%emt 0:00:31]} Nc6 {[%emt 0:05:02]} 23. Bxc6 {[%emt 0:04:47]
} bxc6 {[%emt 0:00:14]} 24. Rb3 {[%emt 0:00:08]} Rb4 {[%emt 0:02:52]} 25. Kg2 {
[%emt 0:06:03]} Kg8 {[%emt 0:10:29]} 26. Rh1 {[%emt 0:09:25]} Qg6 {[%emt 0:00:
00]} 27. Rxb4 {[%emt 0:02:11]} cxb4 {[%emt 0:00:03]} 28. Bxe7 {[%emt 0:00:40]}
Re8 {[%emt 0:00:07]} 29. Bxd6 {[%emt 0:00:15]} Qxe6 {[%emt 0:00:34]} 30. Bxb4 {
[%emt 0:00:56]} Qxe2 {[%emt 0:00:57]} 31. Qxf5 {[%emt 0:01:09]} Qe4+ {[%emt 0:
00:00]} 32. Qxe4 {[%emt 0:00:16]} Rxe4 {[%emt 0:00:12]} 33. b3 {[%emt 0:02:24]}
Re2 {[%emt 0:00:30]} 34. Rd1 {[%emt 0:00:15]} Rb2 {[%emt 0:00:42]} 35. Rd3 {
[%emt 0:00:10]} 1-0

[Event "44th Chess Olympiad Open 2022"]
[Site "Chennai"]
[Date "2022.07.29"]
[Round "1.62"]
[White "Winston Gerald, Mansfield Thomas"]
[Black "Diaz Rosas, Julio Cesar"]
[Result "0-1"]
[WhiteElo "1832"]
[BlackElo "2328"]
[Annotator "TA"]
[PlyCount "140"]
[EventDate "2022.??.??"]
[TimeControl "60"]

{[%evp 15,140,28,57,0,0,-16,-13,-37,-16,-24,-4,-48,-41,-50,-28,-39,-30,-48,-39,
-97,-93,-131,-131,-169,-167,-201,-200,-189,-189,-232,-201,-204,-133,-194,-188,
-170,-99,-138,0,-252,-258,-305,-289,-294,-286,-379,-348,-413,-314,-315,-310,
-314,-309,-316,-313,-319,-322,-370,-357,-346,-325,-330,-266,-323,-336,-325,
-263,-361,-287,-274,-277,-279,-233,-300,-294,-422,-417,-408,-409,-525,-470,
-799,-796,-761,-747,-782,-761,-899,-466,-462,-461,-441,-437,-427,-439,-415,
-329,-359,-354,-375,-362,-514,-508,-515,-520,-510,-504,-562,-558,-557,-534,
-518,-495,-730,-815,-760,-746,-975,-960,-12848,-6257,-29986,-29987,-29987,
-29988,-29991,-29992]} 1. e4 {[%emt 0:00:02]} c5 {[%emt 0:00:41]} 2. Nf3 {
[%emt 0:00:09]} d6 {[%emt 0:00:19]} 3. d4 {[%emt 0:00:09]} cxd4 {[%emt 0:00:07]
} 4. Nxd4 {[%emt 0:00:05]} Nf6 {[%emt 0:00:07]} 5. Nc3 {[%emt 0:00:19]} a6 {
[%emt 0:02:39]} 6. Be2 {[%emt 0:00:15]} e5 {[%emt 0:00:09]} 7. Nb3 {[%emt 0:00:
00]} Be7 {[%emt 0:00:08]} 8. Be3 {[%emt 0:00:21]} O-O {[%emt 0:00:18]} 9. h3 {
[%emt 0:00:30] B92: Sicilian Najdorf: 6 Be2.} (9. g4 $14) 9... Be6 $11 {
[%emt 0:00:54]} 10. Bf3 {[%emt 0:00:28]} Nbd7 {[%emt 0:00:48]} 11. Qd2 {
[%emt 0:00:26] The position is equal.} Rc8 {[%emt 0:00:55]} 12. O-O {[%emt 0:
00:00]} Nb6 {[%emt 0:00:19]} (12... b5 $5 {[%cal Rd7b6]}) 13. Bxb6 {[%emt 0:00:
00]} (13. Na5 $5 {[%cal Ra5b7]}) 13... Qxb6 {[%emt 0:00:07]} 14. Rfd1 {[%emt 0:
00:00] [#]} Rc4 $146 {[%emt 0:04:21]} ({Predecessor:} 14... Rfd8 15. a4 Qc6 16.
Rac1 Qe8 17. a5 Kh8 18. Qe1 g6 19. Nd5 Bxd5 20. exd5 Nd7 21. c4 Nc5 22. Nxc5
Rxc5 23. b4 Rc7 24. c5 dxc5 25. Qxe5+ {1-0 (25) Winterberg,J (1742)-Ostra,N 
(1773) Willingen 2019}) 15. Qe2 {[%emt 0:04:47]} Rfc8 {[%emt 0:01:00]} 16. Rac1
{[%emt 0:00:46]} Bf8 {[%emt 0:07:15]} 17. g4 {[%emt 0:03:23]} (17. Nd2 $15)
17... Be7 {[%emt 0:03:43]} 18. Rd3 {[%emt 0:02:45]} Nd7 {[%emt 0:01:56][%cal
Yf6d7,Yd7f8,Yf8g6,Yg6f4]} 19. Qe1 {[%emt 0:05:28]} Nf8 {[%emt 0:05:15]} 20. Be2
{[%emt 0:02:31]} Ng6 {[%emt 0:00:44]} 21. Rg3 {[%emt 0:07:11]} R4c7 {[%emt 0:
00:46]} 22. g5 {[%emt 0:02:53]} Nf4 {[%emt 0:00:16]} 23. Bf1 {[%emt 0:00:00]}
Qa7 {[%emt 0:02:22]} 24. Rd1 {[%emt 0:01:15]} (24. Qd1 $17 {might work better.}
) 24... b5 $19 {[%emt 0:01:31]} 25. a3 {[%emt 0:02:15]} Bc4 {[%emt 0:00:00]} (
25... Nh5 $19 26. Rf3 Bxg5 27. Rxd6 Nf4) 26. Nd2 {[%emt 0:02:47]} Be6 {[%emt 0:
01:14] 0x0.001eb8830465dp-1022s more active pieces.} ({Better is} 26... Nh5 $17
27. Nxc4 Nxg3 28. Nxd6 Rd8 29. Ndxb5 axb5 30. Nxb5 Rcd7 31. Rxd7 (31. Nxa7 Rxd1
32. Qa5 Nxf1 $17) 31... Qxd7 32. fxg3 Bc5+ 33. Kh2 Qd2+ 34. Qxd2 Rxd2+ 35. Kh1
Rxc2) 27. Nf3 $2 {[%emt 0:01:50] [#] White is now going downhill.} (27. Nb3 $1
$11 {and White has nothing to worry.}) 27... Nh5 {[%emt 0:02:20]} 28. Rg2 {
[%emt 0:00:24]} Bxh3 {[%emt 0:00:21]} 29. Rh2 {[%emt 0:01:50]} Bg4 {[%emt 0:00:
14] This bishop pair is nice.} 30. Be2 {[%emt 0:00:25]} Nf4 {[%emt 0:00:18]
[%cal Yc7c3]} 31. Rh4 {[%emt 0:03:04]} Bxf3 {[%emt 0:01:59]} 32. Bxf3 {[%emt 0:
00:11]} Bxg5 {[%emt 0:00:14]} 33. Rh2 {[%emt 0:01:16]} Rd8 {[%emt 0:01:37]} 34.
Kh1 {[%emt 0:01:20]} Rc5 {[%emt 0:00:00]} 35. Qg1 {[%emt 0:00:42]} Qe7 {
[%emt 0:00:08]} 36. Qg4 {[%emt 0:00:58]} h6 {[%emt 0:01:16]} 37. Rg1 {[%emt 0:
04:22]} Qf6 {[%emt 0:02:01]} 38. Be2 {[%emt 0:03:14]} Qe6 {[%emt 0:02:55]} 39.
Qf3 {[%emt 0:01:47]} Rb8 {[%emt 0:00:00]} 40. Bd3 {[%emt 0:01:50]} a5 {[%emt 0:
03:18]} 41. Ne2 {[%emt 0:39:12]} Nxe2 {[%emt 0:31:12]} 42. Qxe2 {[%emt 0:00:05]
} Bf4 {[%emt 0:00:47]} 43. Rh4 {[%emt 0:01:40]} Kf8 {[%emt 0:05:04]} 44. b3 {
[%emt 0:02:07]} Rc3 {[%emt 0:00:00]} 45. Qf3 {[%emt 0:05:15]} (45. Qg4 $142)
45... a4 {[%emt 0:00:59]} 46. bxa4 {[%emt 0:01:27]} bxa4 {[%emt 0:00:03]} 47.
Qg2 {[%emt 0:00:44]} Qf6 {[%emt 0:00:00]} 48. Rh5 {[%emt 0:01:37]} (48. Rh3
$142) 48... g6 {[%emt 0:00:34]} 49. Rh3 {[%emt 0:00:23]} Rxa3 {[%emt 0:00:19]}
50. Qg4 {[%emt 0:00:32]} Rc3 {[%emt 0:01:35]} 51. Qd7 {[%emt 0:00:23]} Qe6 {
[%emt 0:00:24]} 52. Qxe6 {[%emt 0:01:31]} fxe6 {[%emt 0:00:03]} 53. Ra1 {
[%emt 0:00:29]} Rb4 {[%emt 0:00:00]} 54. Kg2 {[%emt 0:00:22]} Kg7 {[%emt 0:00:
29]} 55. Rhh1 {[%emt 0:03:01]} Rc7 {[%emt 0:02:55]} 56. Ra3 {[%emt 0:00:00]} d5
{[%emt 0:00:23] Inhibits c4.} 57. Re1 {[%emt 0:00:00]} Bd2 {[%emt 0:01:09]} 58.
Re2 {[%emt 0:00:20]} (58. Rea1 {keeps fighting.}) 58... Bc3 {[%emt 0:00:20]}
59. Re3 {[%emt 0:00:56]} Bb2 {[%emt 0:00:15]} 60. Ra2 {[%emt 0:00:27]} a3 {
[%emt 0:00:13]} 61. f3 {[%emt 0:00:00]} Kf6 {[%emt 0:00:35]} 62. Re1 {[%emt 0:
01:41]} Ra7 {[%emt 0:00:15]} 63. Rb1 {[%emt 0:00:24]} Bc3 {[%emt 0:00:35]} 64.
Rb3 {[%emt 0:00:57]} (64. Rxb4 $142 Bxb4 65. exd5) 64... Rxb3 {[%emt 0:00:20]}
65. cxb3 {[%emt 0:00:08] Endgame KRB-KRB} Bb4 {[%emt 0:00:00]} 66. Bb1 {
[%emt 0:01:23]} Rc7 {[%emt 0:00:00] aiming for ...d4.} 67. Re2 {[%emt 0:00:21]}
Rc1 {[%emt 0:00:00]} 68. Ba2 {[%emt 0:00:09]} d4 {[%emt 0:00:00][%cal Yd5d4,
Yd4d3,Yd3d2] Black mates.} 69. Rf2 {[%emt 0:04:34]} d3 {[%emt 0:00:00]} 70. Rf1
{[%emt 0:00:00]} d2 {[%emt 0:00:00] Weighted Error Value: White=0.49/Black=0.
27 (precise)} 0-1

[Event "44th Chess Olympiad Open 2022"]
[Site "Chennai"]
[Date "2022.07.29"]
[Round "1.62"]
[White "Adeshole Beckley, Brian"]
[Black "Montes Orozco, Miguel Angel"]
[Result "0-1"]
[WhiteElo "1590"]
[BlackElo "2070"]
[Annotator "NA RC"]
[PlyCount "44"]
[EventDate "2022.??.??"]
[TimeControl "60"]

1. d4 {[%emt 0:00:12]} d5 {[%emt 0:00:11]} 2. c4 {[%emt 0:00:11]} c6 {[%emt 0:
00:00]} 3. Nc3 {[%emt 0:00:55]} dxc4 {[%emt 0:00:17]} 4. e3 {[%emt 0:02:40]} b5
{[%emt 0:00:12]} 5. Nxb5 {[%emt 0:00:43]} cxb5 {[%emt 0:02:34]} 6. Qf3 {
[%emt 0:00:22]} Qc7 {[%emt 0:08:07]} 7. Qxa8 {[%emt 0:01:40]} Bb7 {[%emt 0:00:
00]} 8. Qxa7 {[%emt 0:00:19]} e5 {[%emt 0:01:13]} 9. Bxc4 {[%emt 0:12:07]} bxc4
{[%emt 0:01:12]} 10. Bd2 {[%emt 0:07:52]} Bd6 {[%emt 0:06:40]} 11. Ba5 {
[%emt 0:13:29]} Qe7 {[%emt 0:02:47]} 12. d5 {[%emt 0:13:00]} Nf6 {[%emt 0:00:
00]} 13. a3 {[%emt 0:07:59]} Nxd5 {[%emt 0:00:31]} 14. Bd2 {[%emt 0:08:57]} Na6
{[%emt 0:00:15]} 15. Bb4 {[%emt 0:07:58]} Ndxb4 {[%emt 0:00:14]} 16. axb4 {
[%emt 0:00:30]} Bxb4+ {[%emt 0:00:08]} 17. Ke2 {[%emt 0:01:49]} Bc5 {[%emt 0:
00:00]} 18. Qxa6 {[%emt 0:00:53]} Bxa6 {[%emt 0:00:07]} 19. Rxa6 {[%emt 0:00:
00]} Qb7 {[%emt 0:00:18]} 20. Ra2 {[%emt 0:01:15]} O-O {[%emt 0:00:31]} 21. Nf3
{[%emt 0:00:13]} Qb3 {[%emt 0:00:08]} 22. Rha1 {[%emt 0:00:35]} Qd3+ {[%emt 0:
00:00]} 0-1

[Event "44th Chess Olympiad Open 2022"]
[Site "Chennai"]
[Date "2022.07.29"]
[Round "1.63"]
[White "Stoyanov, Tsvetan"]
[Black "Montel Jr, Cyril Tomas"]
[Result "1-0"]
[WhiteElo "2450"]
[BlackElo "1827"]
[Annotator "TA"]
[PlyCount "85"]
[EventDate "2022.??.??"]
[TimeControl "60"]

{[%evp 21,85,50,57,60,90,76,83,44,163,156,143,179,168,162,173,127,171,156,173,
160,381,369,443,442,662,637,843,804,615,616,588,555,550,554,656,656,637,622,
641,631,733,731,730,715,835,784,815,820,829,810,813,791,834,849,1002,1002,1148,
1148,1173,1091,29977,6149,29976,29976,29973,6328]} 1. e4 {[%emt 0:00:18]} c5 {
[%emt 0:00:20]} 2. Nf3 {[%emt 0:00:19]} g6 {[%emt 0:00:40]} 3. c4 {[%emt 0:00:
00]} Nc6 {[%emt 0:01:34]} 4. d4 {[%emt 0:00:13]} cxd4 {[%emt 0:00:08]} 5. Nxd4
{[%emt 0:00:08]} Nf6 {[%emt 0:00:34]} 6. Nc3 {[%emt 0:00:30]} d6 {[%emt 0:00:
00]} 7. Be2 {[%emt 0:01:10]} Bg7 {[%emt 0:00:18]} 8. Be3 {[%emt 0:00:41]} Nxd4
{[%emt 0:00:16]} 9. Bxd4 {[%emt 0:02:03]} O-O {[%emt 0:00:12]} 10. O-O {
[%emt 0:01:04]} Be6 {[%emt 0:00:39]} 11. f4 {[%emt 0:11:15][%cal Yf2f4,Yf4f5]}
Rc8 {[%emt 0:04:59]} 12. b3 {[%emt 0:00:00] B38: Sicilian: Maroczy Bind with 5.
..Bg7 and 7...0-0.} ({Reject} 12. Bxa7 $6 Bxc4 13. Bf2 Qa5 $11) 12... Qa5 {
[%emt 0:00:36][%cal Ye6g4]} 13. Rb1 {[%emt 0:06:11] [#]} a6 $146 {[%emt 0:01:
38]} ({Predecessor:} 13... Bg4 14. e5 Bxe2 15. Qxe2 Nd7 16. Nd5 Qd8 17. Rbd1 e6
18. Ne3 dxe5 19. Bxe5 Rc6 {½-½ (45) Cifuentes Parada,R (2512) -Manolache,M 
(2462) Cambados 2005}) 14. a4 {[%emt 0:04:30] White is better.} Ne8 {[%emt 0:
03:24] [#]} ({Black should try} 14... Bg4 $1 $14) 15. f5 $1 $18 {[%emt 0:09:41]
} Bxd4+ {[%emt 0:18:08]} 16. Qxd4 {[%emt 0:00:52]} Bd7 {[%emt 0:00:00]} 17. Nd5
{[%emt 0:07:52][%cal Rd5e7] Prevents Nf6.} Qd8 {[%emt 0:01:20]} 18. Bg4 {
[%emt 0:04:45]} (18. Rbd1 $18) 18... f6 {[%emt 0:11:48]} 19. Qe3 $36 {[%emt 0:
10:21] White is in control.} g5 {[%emt 0:00:27]} 20. h4 {[%emt 0:03:56]} h6 {
[%emt 0:01:28]} (20... gxh4 $16 21. Rf4 Rf7) 21. hxg5 {[%emt 0:00:12]} hxg5 {
[%emt 0:00:09]} 22. Kf2 {[%emt 0:06:50] [#] White threatens Qh3 and mate.} Nc7
{[%emt 0:01:35]} (22... Kg7 $142 23. Rh1 Rg8) 23. Nb6 {[%emt 0:01:13]} Rb8 {
[%emt 0:01:01]} 24. Rh1 {[%emt 0:00:13] Qh3 would kill now.} Kg7 {[%emt 0:00:
39]} 25. Qh3 {[%emt 0:00:40][%csl Gh1][%cal Rh3h7]} Rh8 {[%emt 0:00:56]
Prevents Qh7+.} 26. Qxh8+ {[%emt 0:00:11]} Qxh8 {[%emt 0:00:00]} 27. Rxh8 {
[%emt 0:00:02]} Kxh8 {[%emt 0:00:21]} 28. Nxd7 {[%emt 0:00:00]} Rd8 {[%emt 0:
00:13]} 29. Nb6 {[%emt 0:00:02]} Kg7 {[%emt 0:00:27]} 30. Rd1 {[%emt 0:00:25]}
Na8 {[%emt 0:03:48]} 31. Nxa8 {[%emt 0:00:53]} Rxa8 {[%emt 0:00:00] Endgame
KRB-KR} 32. c5 {[%emt 0:00:13]} Rd8 {[%emt 0:00:13]} 33. cxd6 {[%emt 0:01:02]}
exd6 {[%emt 0:00:22]} 34. Rc1 {[%emt 0:00:04]} Rd7 {[%emt 0:00:17]} 35. Be2 {
[%emt 0:00:53]} Re7 {[%emt 0:03:43]} 36. Rc8 {[%emt 0:00:00]} Rxe4 {[%emt 0:01:
14]} 37. Rc7+ {[%emt 0:00:07]} Kh6 {[%emt 0:00:32]} 38. Rxb7 {[%emt 0:00:22]}
Rf4+ {[%emt 0:00:41]} 39. Kg3 {[%emt 0:00:10]} a5 {[%emt 0:00:51]} 40. Rf7 {
[%emt 0:00:26]} Rb4 {[%emt 0:00:54]} 41. Bc4 {[%emt 0:00:00]} (41. Rxf6+ $142
Kh7 42. Bc4 d5 43. Bxd5 Rh4 44. Rg6 Rd4 45. Be6 Rh4 46. Rxg5) 41... d5 {
[%emt 0:31:13]} 42. Rxf6+ {[%emt 0:00:16]} Kg7 {[%emt 0:00:46]} 43. Rg6+ {
[%emt 0:00:06] Weighted Error Value: White=0.08 (flawless) /Black=0.54} 1-0

[Event "44th Chess Olympiad Open 2022"]
[Site "Chennai"]
[Date "2022.07.29"]
[Round "1.63"]
[White "Georgiev, Todor"]
[Black "Reklai, Reece"]
[Result "1-0"]
[WhiteElo "2272"]
[BlackElo "1351"]
[Annotator "RC"]
[PlyCount "53"]
[EventDate "2022.??.??"]
[TimeControl "60"]

1. d4 {[%emt 0:00:15]} e6 {[%emt 0:00:36]} 2. c4 {[%emt 0:01:12]} d5 {[%emt 0:
00:00]} 3. Nc3 {[%emt 0:01:03]} Bb4 {[%emt 0:01:46]} 4. Nf3 {[%emt 0:01:17]}
Bxc3+ {[%emt 0:05:45]} 5. bxc3 {[%emt 0:00:05]} dxc4 {[%emt 0:02:08]} 6. Qa4+ {
[%emt 0:17:00]} Bd7 {[%emt 0:07:33]} 7. Qxc4 {[%emt 0:00:09]} b5 {[%emt 0:00:
00]} 8. Qb3 {[%emt 0:05:59]} a5 {[%emt 0:07:22]} 9. e3 {[%emt 0:04:26]} c6 {
[%emt 0:04:10]} 10. a4 {[%emt 0:03:47]} Ne7 {[%emt 0:14:13]} 11. axb5 {[%emt 0:
00:00]} cxb5 {[%emt 0:00:54]} 12. Bxb5 {[%emt 0:00:37]} Bxb5 {[%emt 0:00:20]}
13. Qxb5+ {[%emt 0:00:08]} Nd7 {[%emt 0:00:12]} 14. Ne5 {[%emt 0:04:29]} Qc7 {
[%emt 0:12:33]} 15. O-O {[%emt 0:03:53]} f6 {[%emt 0:03:23]} 16. Nxd7 {[%emt 0:
00:00]} Qxd7 {[%emt 0:00:36]} 17. Rxa5 {[%emt 0:01:23]} Rxa5 {[%emt 0:00:24]}
18. Qxa5 {[%emt 0:00:07]} O-O {[%emt 0:01:12]} 19. c4 {[%emt 0:04:37]} Nc6 {
[%emt 0:06:17]} 20. Qc3 {[%emt 0:01:24]} Rb8 {[%emt 0:00:53]} 21. Ba3 {[%emt 0:
00:00]} Qb7 {[%emt 0:06:23]} 22. d5 {[%emt 0:01:52]} exd5 {[%emt 0:00:40]} 23.
cxd5 {[%emt 0:00:05]} Ne7 {[%emt 0:03:52]} 24. Bxe7 {[%emt 0:00:42]} Qxe7 {
[%emt 0:00:25]} 25. Rd1 {[%emt 0:01:21]} Qe4 {[%emt 0:00:41]} 26. h3 {[%emt 0:
00:00]} Rb1 {[%emt 0:01:08]} 27. Qc8+ {[%emt 0:00:13]} 1-0

[Event "44th Chess Olympiad Open 2022"]
[Site "Chennai"]
[Date "2022.07.29"]
[Round "1.63"]
[White "Tan, Santiago Jr"]
[Black "Petkov, Momchil"]
[Result "0-1"]
[WhiteElo "1872"]
[BlackElo "2510"]
[Annotator "TA"]
[PlyCount "58"]
[EventDate "2022.??.??"]
[TimeControl "60"]

{[%evp 9,58,-7,-9,-13,-18,-22,-10,-22,0,-6,29,-16,-1,-6,-3,-10,-22,-22,-11,0,0,
-42,-44,-314,-194,-219,-219,-212,-215,-238,-184,-203,-131,-101,-129,-169,-127,
-366,-350,-540,-518,-696,-114,-427,-422,-420,-412,-391,-270,-29991,-29992]} 1.
e4 {[%emt 0:00:13]} c5 {[%emt 0:00:33]} 2. Nf3 {[%emt 0:00:57]} d6 {[%emt 0:00:
00]} 3. Bc4 {[%emt 0:02:16]} Nf6 {[%emt 0:01:03][%cal Yg8f6,Yf6d7,Yd7b6]} 4.
Nc3 {[%emt 0:00:17]} e6 {[%emt 0:01:03]} 5. d3 {[%emt 0:02:05]} Be7 {[%emt 0:
01:33]} 6. h3 {[%emt 0:02:45] B50: Sicilian: 2...d6, Miscellaneous.} O-O {
[%emt 0:01:51]} 7. O-O $1 {[%emt 0:03:56]} Nc6 {[%emt 0:11:53]} 8. Bf4 {
[%emt 0:04:34] The position is equal.} Nd7 {[%emt 0:04:51]} 9. a3 {[%emt 0:00:
00] [#]} Kh8 $146 {[%emt 0:08:03]} ({Predecessor:} 9... a6 10. Bg3 Nde5 11. Re1
Nxf3+ 12. Qxf3 Nd4 13. Qd1 b5 14. Ba2 Bb7 15. e5 d5 16. Ne2 {½-½ (46) Al
Ghasra,S-Mosa,O (1719) Amman 2014}) 10. Ne2 {[%emt 0:09:34]} e5 {[%emt 0:05:30]
} 11. Be3 {[%emt 0:00:35]} Nb6 {[%emt 0:00:30]} 12. Ba2 {[%emt 0:00:33]} f5 {
[%emt 0:00:36]} 13. exf5 {[%emt 0:01:20]} Bxf5 {[%emt 0:01:06]} 14. Ng3 {
[%emt 0:00:29]} Bg6 {[%emt 0:01:08]} 15. Qd2 {[%emt 0:06:43]} d5 {[%emt 0:00:
00][%cal Yf8f3]} 16. Bg5 $2 {[%emt 0:02:10] [#]} ({White should try} 16. Qe2
$15) 16... Nd4 {[%emt 0:07:07]} 17. Bxe7 {[%emt 0:02:12]} Nxf3+ {[%emt 0:00:07]
} ({Inferior is} 17... Qxe7 18. Nxd4 exd4 19. b4 $11) 18. gxf3 {[%emt 0:00:17]}
Qxe7 {[%emt 0:00:07]} 19. Kg2 {[%emt 0:00:52]} Qh4 {[%emt 0:00:00] aiming for .
..Bh5.} 20. Rae1 {[%emt 0:06:06]} Bh5 {[%emt 0:05:34]} 21. Nxh5 {[%emt 0:13:04]
} Qxh5 {[%emt 0:00:09]} 22. Qe3 {[%emt 0:00:21]} Rf5 {[%emt 0:00:00] ...Raf8
is the strong threat.} 23. Rh1 $2 {[%emt 0:11:25]} (23. f4 $17 {was the only
defense.}) 23... Raf8 $19 {[%emt 0:01:07][%cal Rf5f3,Ya8f8,Yf8f6,Yf6g6]} 24.
Re2 {[%emt 0:01:55]} (24. f4 $142) 24... Rxf3 {[%emt 0:00:00]} 25. Qxc5 {
[%emt 0:04:19]} R3f5 $2 {[%emt 0:05:06]} (25... Qg5+ $19 26. Kf1 Qf4) 26. Qe3
$2 {[%emt 0:03:26]} (26. Kf1 $17) 26... d4 {[%emt 0:00:00]} 27. Qd2 {[%emt 0:
00:31]} Qf3+ {[%emt 0:06:07]} 28. Kg1 {[%emt 0:00:55]} R8f6 {[%emt 0:03:00] (
-> ...Rg6+)} 29. Rh2 $2 {[%emt 0:02:25] [#]} (29. Re4 $19) 29... Rg6+ {[%emt 0:
00:20] Weighted Error Value: White=1.01/Black=0.51} 0-1

[Event "44th Chess Olympiad Open 2022"]
[Site "Chennai"]
[Date "2022.07.29"]
[Round "1.63"]
[White "Salvadora, Angelo"]
[Black "Yordanov, Lachezar"]
[Result "0-1"]
[WhiteElo "1711"]
[BlackElo "2316"]
[Annotator "TA"]
[PlyCount "78"]
[EventDate "2022.??.??"]
[TimeControl "60"]

{[%evp 9,78,-19,31,34,37,30,31,32,33,-13,-23,-64,-70,-68,-68,-84,-91,-74,-39,
-44,-25,-52,-13,-91,-80,-80,-54,-261,-263,-248,-244,-494,-486,-511,-505,-530,
-510,-880,-858,-851,-876,-978,-760,-1074,-1071,-982,-818,-29981,-29979,-29985,
-29986,-29984,-982,-957,-942,-831,-773,-907,-752,-872,-789,-838,-817,-2405,
-2283,-29969,-29970,-29983,-29981,-29996,-29997]} 1. e4 {[%emt 0:00:16]} c5 {
[%emt 0:00:02]} 2. Bc4 {[%emt 0:00:55]} e6 {[%emt 0:00:34]} 3. Nc3 {[%emt 0:00:
00]} a6 {[%emt 0:00:10]} 4. a4 {[%emt 0:01:44]} Nc6 {[%emt 0:00:09]} 5. Nf3 {
[%emt 0:01:36]} g6 {[%emt 0:00:08]} ({Better is} 5... Nf6 $11) 6. d4 $14 {
[%emt 0:01:20] B20: Sicilian: Unusual White 2nd moves.} cxd4 {[%emt 0:00:09]}
7. Nxd4 {[%emt 0:01:23]} Bg7 {[%emt 0:00:56]} 8. Nxc6 {[%emt 0:01:30] White is
slightly better.} bxc6 {[%emt 0:00:12] [#]} 9. Bf4 $146 {[%emt 0:06:31]} (9.
Qd6 $14 {deserves consideration.}) ({Predecessor:} 9. Qf3 d5 10. exd5 cxd5 11.
Ba2 Ne7 12. Bg5 Qc7 13. Bf6 O-O 14. O-O-O Bb7 15. Bxg7 Kxg7 {0-1 (40) Grohn,
M-Treiber,V (1584) Waechtersbach 2019}) 9... d5 $1 $11 {[%emt 0:00:23]} 10.
exd5 {[%emt 0:01:33]} cxd5 {[%emt 0:00:24]} 11. Bd3 {[%emt 0:04:45]} Ne7 {
[%emt 0:00:26]} 12. Qd2 {[%emt 0:02:43]} O-O {[%emt 0:03:04]} 13. Bh6 {[%emt 0:
00:00]} e5 {[%emt 0:00:13]} 14. Bxg7 {[%emt 0:00:21]} Kxg7 {[%emt 0:00:07]} 15.
O-O {[%emt 0:00:52]} Bb7 {[%emt 0:00:49]} 16. Qg5 {[%emt 0:07:20]} (16. a5 $11)
16... f6 $17 {[%emt 0:00:11]} 17. Qg3 {[%emt 0:02:50]} Rc8 {[%emt 0:06:14]
aiming for ...e4.} 18. h4 $2 {[%emt 0:00:59] [#] White does not recover from
this.} (18. Ne2 $15) 18... e4 $1 $19 {[%emt 0:01:11]} 19. Be2 {[%emt 0:00:36]}
d4 {[%emt 0:00:07]} 20. Nd1 $2 {[%emt 0:04:58]} (20. Rad1 Qe8 21. Bg4 (21. Rxd4
$2 Nf5 $19)) 20... Rxc2 {[%emt 0:00:32]} 21. Bg4 {[%emt 0:01:18]} Qd5 {[%emt 0:
00:00]} 22. Re1 {[%emt 0:14:23]} f5 {[%emt 0:00:32][%cal Yf6f5,Yf5f4]} 23. Be2
{[%emt 0:02:57]} (23. Re2 $142 Rc5 24. b4) 23... f4 {[%emt 0:00:08]} 24. Qa3 {
[%emt 0:10:35]} Nf5 {[%emt 0:01:14]} 25. Bg4 {[%emt 0:02:24]} Rf7 {[%emt 0:01:
21]} 26. h5 {[%emt 0:03:33]} e3 {[%emt 0:03:22][%csl Gb7][%cal Rd5g2]} 27. Bf3
{[%emt 0:00:36]} Qa5 {[%emt 0:00:12]} 28. Re2 {[%emt 0:03:17]} Rxe2 {[%emt 0:
00:28]} 29. Bxe2 {[%emt 0:04:10]} Qe1+ {[%emt 0:00:10]} 30. Bf1 {[%emt 0:03:59]
[#]} e2 {[%emt 0:00:09]} (30... Ng3 $142 $1 31. Qd3 e2 32. Nc3 Qxa1 33. Qxe2
Nxe2+ 34. Nxe2 d3 35. Nc3 d2 36. hxg6 hxg6 37. f3 Qe1 38. b3 Qe3+ 39. Kh1 Kh8
40. g4 Qxf3+ 41. Kg1 Qg3+ 42. Bg2 Qxg2#) 31. Ne3 {[%emt 0:01:20]} exf1=Q+ {
[%emt 0:00:12]} 32. Nxf1 {[%emt 0:00:14]} Qe4 {[%emt 0:00:05][%csl Gb7][%cal
Re4g2]} 33. Qh3 {[%emt 0:00:52]} f3 {[%emt 0:00:00]} 34. Nd2 {[%emt 0:00:48]}
Qe2 {[%emt 0:00:12]} 35. Nxf3 {[%emt 0:00:31]} Bxf3 {[%emt 0:00:08]} 36. gxf3 {
[%emt 0:00:19]} d3 {[%emt 0:00:12][%cal Yd4d3,Yd3d2]} 37. hxg6 {[%emt 0:00:15]}
hxg6 {[%emt 0:00:07] Black mates.} 38. Kg2 {[%emt 0:04:25]} d2 {[%emt 0:00:21]}
39. Rh1 {[%emt 0:00:23]} Ne3+ {[%emt 0:00:05] Weighted Error Value: White=1.13/
Black=0.49} 0-1